fUSD/lending_fUSD_20260520
["ID","MTS","AMOUNT","RATE_DAILY","PERIOD"]
[422670762,1779229839000,-12034.63785526,0.0001157,2]
[422670790,1779229839000,-433.0,0.00012818,2]
[422670784,1779229839000,-642.94,0.00012602,2]
[422670797,1779229839000,-4159.361447,0.00013002,2]
[422670824,1779229839000,-150.0,0.00013511,2]
[422670820,1779229839000,-150.0,0.00013488,2]
[422670822,1779229839000,-150.0,0.00013488,2]
[422670823,1779229839000,-150.0,0.00013488,2]
[422670827,1779229839000,-150.0,0.00013545,2]
[422670836,1779229839000,-909.7096108,0.00013634,2]
[422670830,1779229839000,-150.0,0.00013581,2]
[422670829,1779229839000,-150.0,0.0001358,2]
[422670835,1779229839000,-150.0,0.00013626,2]
[422670837,1779229839000,-150.0,0.00013649,2]
[422670834,1779229839000,-150.0,0.00013624,2]
[422670826,1779229839000,-150.0,0.00013534,2]
[422670825,1779229839000,-42199.72058963,0.00013532,2]
[422670828,1779229839000,-150.0,0.00013557,2]
[422670833,1779229839000,-150.0,0.00013603,2]
[422670838,1779229839000,-150.0,0.00013661,2]
[422670840,1779229839000,-150.0,0.00013672,2]
[422670847,1779229839000,-500.0,0.00013698,2]
[422670848,1779229839000,-500.0,0.00013698,2]
[422670845,1779229839000,-500.0,0.00013698,2]
[422670841,1779229839000,-150.0,0.00013675,2]
[422670846,1779229839000,-500.0,0.00013698,2]
[422670844,1779229839000,-150.0,0.00013695,2]
[422670843,1779229839000,-150.0,0.00013675,2]
[422670796,1779229839000,-909.7096108,0.00013002,2]
[422670842,1779229839000,-150.0,0.00013675,2]
[422670831,1779229839000,-500.0,0.00013597,2]
[422670818,1779229839000,-150.00000001,0.00013488,2]
[422670832,1779229839000,-150.0,0.00013603,2]
[422670819,1779229839000,-150.0,0.00013488,2]
[422670800,1779229839000,-12720.36108251,0.00013038,2]
[422670798,1779229839000,-553.278842,0.00013002,2]
[422670821,1779229839000,-150.0,0.00013488,2]
[422670799,1779229839000,-1788.7339993,0.00013018,2]
[422670792,1779229839000,-587.0,0.00012876,2]
[422670794,1779229839000,-300.0,0.00012957,2]
[422670791,1779229839000,-11768.87507917,0.00012856,2]
[422670795,1779229839000,-156.75,0.00012965,2]
[422670804,1779229839000,-200.0,0.00013231,2]
[422670811,1779229839000,-500.0,0.00013342,2]
[422670803,1779229839000,-42199.72058963,0.00013126,2]
[422670810,1779229839000,-198.391004,0.00013333,2]
[422670806,1779229839000,-2251.076426,0.00013261,2]
[422670793,1779229839000,-2351.0,0.00012893,2]
[422670816,1779229839000,-150.0,0.00013488,2]
[422670817,1779229839000,-150.0,0.00013488,2]
[422670808,1779229839000,-960.72,0.00013287,2]
[422670815,1779229839000,-150.0,0.00013488,2]
[422670813,1779229839000,-150.0,0.00013488,2]
[422670801,1779229839000,-500.0,0.00013049,2]
[422670814,1779229839000,-151.44167909,0.00013488,2]
[422670812,1779229839000,-605.0,0.0001337,2]
[422670805,1779229839000,-2924.124117,0.00013261,2]
[422670809,1779229839000,-500.0,0.00013323,2]
[422670807,1779229839000,-1952.365047,0.00013261,2]
[422670802,1779229839000,-822.37527009,0.00013056,2]
[422670893,1779229840000,-500.0,0.00013698,2]
[422670891,1779229840000,-500.0,0.00013698,2]
[422670892,1779229840000,-508.68888162,0.00013698,2]
[422670898,1779229840000,-500.0,0.00013698,2]
[422670888,1779229840000,-500.0,0.00013698,2]
[422670881,1779229840000,-508.45785621,0.00013698,2]
[422670879,1779229840000,-500.0,0.00013698,2]
[422670878,1779229840000,-500.0,0.00013698,2]
[422670882,1779229840000,-500.0,0.00013698,2]
[422670883,1779229840000,-500.0,0.00013698,2]
[422670887,1779229840000,-500.0,0.00013698,2]
[422670884,1779229840000,-500.0,0.00013698,2]
[422670890,1779229840000,-500.0,0.00013698,2]
[422670901,1779229840000,-500.0,0.00013698,2]
[422670894,1779229840000,-500.0,0.00013698,2]
[422670896,1779229840000,-500.0,0.00013698,2]
[422670897,1779229840000,-500.0,0.00013698,2]
[422670895,1779229840000,-500.0,0.00013698,2]
[422670900,1779229840000,-500.0,0.00013698,2]
[422670910,1779229840000,-500.0,0.00013698,2]
[422670909,1779229840000,-490.0,0.00013698,2]
[422670899,1779229840000,-500.0,0.00013698,2]
[422670911,1779229840000,-500.0,0.00013698,2]
[422670904,1779229840000,-500.0,0.00013698,2]
[422670908,1779229840000,-275.0,0.00013698,2]
[422670906,1779229840000,-500.0,0.00013698,2]
[422670880,1779229840000,-500.0,0.00013698,2]
[422670889,1779229840000,-500.0,0.00013698,2]
[422670877,1779229840000,-500.0,0.00013698,2]
[422670850,1779229840000,-500.0,0.00013698,2]
[422670886,1779229840000,-500.0,0.00013698,2]
[422670902,1779229840000,-500.0,0.00013698,2]
[422670849,1779229840000,-625.7470238,0.00013698,2]
[422670861,1779229840000,-500.0,0.00013698,2]
[422670852,1779229840000,-500.0,0.00013698,2]
[422670851,1779229840000,-500.0,0.00013698,2]
[422670858,1779229840000,-1024.77,0.00013698,2]
[422670859,1779229840000,-500.0,0.00013698,2]
[422670860,1779229840000,-500.0,0.00013698,2]
[422670854,1779229840000,-500.0,0.00013698,2]
[422670853,1779229840000,-500.0,0.00013698,2]
[422670855,1779229840000,-500.0,0.00013698,2]
[422670857,1779229840000,-500.0,0.00013698,2]
[422670856,1779229840000,-500.0,0.00013698,2]
[422670885,1779229840000,-500.0,0.00013698,2]
[422670862,1779229840000,-500.0,0.00013698,2]
[422670872,1779229840000,-525.7,0.00013698,2]
[422670874,1779229840000,-525.7,0.00013698,2]
[422670868,1779229840000,-525.7,0.00013698,2]
[422670869,1779229840000,-525.7,0.00013698,2]
[422670873,1779229840000,-525.7,0.00013698,2]
[422670865,1779229840000,-525.7,0.00013698,2]
[422670864,1779229840000,-309.02129379,0.00013698,2]
[422670870,1779229840000,-525.7,0.00013698,2]
[422670871,1779229840000,-525.7,0.00013698,2]
[422670866,1779229840000,-525.7,0.00013698,2]
[422670867,1779229840000,-525.7,0.00013698,2]
[422670876,1779229840000,-525.7,0.00013698,2]
[422670875,1779229840000,-525.7,0.00013698,2]
[422670863,1779229840000,-500.0,0.00013698,2]
[422670903,1779229840000,-500.0,0.00013698,2]
[422670955,1779229840000,-500.0,0.00013698,2]
[422670907,1779229840000,-500.0,0.00013698,2]
[422670939,1779229840000,-500.0,0.00013698,2]
[422670948,1779229840000,-500.0,0.00013698,2]
[422670944,1779229840000,-500.0,0.00013698,2]
[422670946,1779229840000,-500.0,0.00013698,2]
[422670951,1779229840000,-500.0,0.00013698,2]
[422670950,1779229840000,-500.0,0.00013698,2]
[422670952,1779229840000,-500.0,0.00013698,2]
[422670964,1779229840000,-502.56,0.00013698,2]
[422670966,1779229840000,-502.56,0.00013698,2]
[422670965,1779229840000,-500.0,0.00013698,2]
[422670960,1779229840000,-500.0,0.00013698,2]
[422670962,1779229840000,-430.77473575,0.00013698,2]
[422670953,1779229840000,-500.0,0.00013698,2]
[422670959,1779229840000,-500.0,0.00013698,2]
[422670958,1779229840000,-500.0,0.00013698,2]
[422670956,1779229840000,-500.0,0.00013698,2]
[422670963,1779229840000,-500.0,0.00013698,2]
[422670961,1779229840000,-500.0,0.00013698,2]
[422670967,1779229840000,-500.0,0.00013698,2]
[422670972,1779229840000,-502.56,0.00013698,2]
[422670974,1779229840000,-502.56,0.00013698,2]
[422670969,1779229840000,-500.0,0.00013698,2]
[422670968,1779229840000,-502.56,0.00013698,2]
[422670973,1779229840000,-500.0,0.00013698,2]
[422670971,1779229840000,-500.0,0.00013698,2]
[422670970,1779229840000,-502.56,0.00013698,2]
[422670905,1779229840000,-500.0,0.00013698,2]
[422670949,1779229840000,-500.0,0.00013698,2]
[422670943,1779229840000,-500.0,0.00013698,2]
[422670957,1779229840000,-500.0,0.00013698,2]
[422670942,1779229840000,-500.0,0.00013698,2]
[422670941,1779229840000,-500.0,0.00013698,2]
[422670912,1779229840000,-500.0,0.00013698,2]
[422670914,1779229840000,-500.0,0.00013698,2]
[422670916,1779229840000,-500.0,0.00013698,2]
[422670921,1779229840000,-500.0,0.00013698,2]
[422670920,1779229840000,-500.0,0.00013698,2]
[422670918,1779229840000,-500.0,0.00013698,2]
[422670915,1779229840000,-500.0,0.00013698,2]
[422670924,1779229840000,-500.0,0.00013698,2]
[422670917,1779229840000,-500.0,0.00013698,2]
[422670923,1779229840000,-500.0,0.00013698,2]
[422670919,1779229840000,-500.0,0.00013698,2]
[422670922,1779229840000,-500.0,0.00013698,2]
[422670926,1779229840000,-500.0,0.00013698,2]
[422670913,1779229840000,-500.0,0.00013698,2]
[422670928,1779229840000,-500.0,0.00013698,2]
[422670937,1779229840000,-507.15627863,0.00013698,2]
[422670938,1779229840000,-500.0,0.00013698,2]
[422670934,1779229840000,-500.0,0.00013698,2]
[422670935,1779229840000,-500.0,0.00013698,2]
[422670930,1779229840000,-500.0,0.00013698,2]
[422670932,1779229840000,-500.0,0.00013698,2]
[422670940,1779229840000,-500.0,0.00013698,2]
[422670933,1779229840000,-500.0,0.00013698,2]
[422670931,1779229840000,-500.0,0.00013698,2]
[422670925,1779229840000,-500.0,0.00013698,2]
[422670927,1779229840000,-500.0,0.00013698,2]
[422670936,1779229840000,-500.0,0.00013698,2]
[422670929,1779229840000,-500.0,0.00013698,2]
[422671016,1779229841000,-500.0,0.00013698,2]
[422671013,1779229841000,-502.26457944,0.00013698,2]
[422671010,1779229841000,-500.0,0.00013698,2]
[422671008,1779229841000,-500.0,0.00013698,2]
[422671012,1779229841000,-500.0,0.00013698,2]
[422671014,1779229841000,-500.0,0.00013698,2]
[422671009,1779229841000,-500.0,0.00013698,2]
[422671007,1779229841000,-500.0,0.00013698,2]
[422671006,1779229841000,-209.51466794,0.00013698,2]
[422671015,1779229841000,-500.0,0.00013698,2]
[422671022,1779229841000,-500.0,0.00013698,2]
[422671011,1779229841000,-500.0,0.00013698,2]
[422671017,1779229841000,-500.0,0.00013698,2]
[422671020,1779229841000,-504.85547194,0.00013698,2]
[422671023,1779229841000,-500.0,0.00013698,2]
[422671026,1779229841000,-500.0,0.00013698,2]
[422671018,1779229841000,-500.0,0.00013698,2]
[422671024,1779229841000,-500.0,0.00013698,2]
[422671027,1779229841000,-500.0,0.00013698,2]
[422671021,1779229841000,-375.48613759,0.00013698,2]
[422671019,1779229841000,-500.0,0.00013698,2]
[422671029,1779229841000,-500.0,0.00013698,2]
[422671039,1779229841000,-500.0,0.00013698,2]
[422671028,1779229841000,-500.0,0.00013698,2]
[422671033,1779229841000,-500.0,0.00013698,2]
[422671032,1779229841000,-500.0,0.00013698,2]
[422671005,1779229841000,-500.0,0.00013698,2]
[422671025,1779229841000,-500.0,0.00013698,2]
[422671004,1779229841000,-500.0,0.00013698,2]
[422671035,1779229841000,-500.0,0.00013698,2]
[422670992,1779229841000,-5192.73,0.00013698,2]
[422670978,1779229841000,-500.0,0.00013698,2]
[422670977,1779229841000,-500.0,0.00013698,2]
[422670976,1779229841000,-502.56,0.00013698,2]
[422670975,1779229841000,-500.0,0.00013698,2]
[422670980,1779229841000,-500.0,0.00013698,2]
[422670990,1779229841000,-5192.73,0.00013698,2]
[422670979,1779229841000,-502.56,0.00013698,2]
[422670983,1779229841000,-502.56,0.00013698,2]
[422670984,1779229841000,-500.0,0.00013698,2]
[422670982,1779229841000,-500.0,0.00013698,2]
[422670981,1779229841000,-502.56,0.00013698,2]
[422670987,1779229841000,-502.56,0.00013698,2]
[422670988,1779229841000,-500.0,0.00013698,2]
[422670989,1779229841000,-442.23348192,0.00013698,2]
[422670985,1779229841000,-219.19886839,0.00013698,2]
[422670986,1779229841000,-502.56,0.00013698,2]
[422670991,1779229841000,-5192.73,0.00013698,2]
[422670993,1779229841000,-5192.73,0.00013698,2]
[422670994,1779229841000,-5192.73,0.00013698,2]
[422670999,1779229841000,-5192.73,0.00013698,2]
[422670997,1779229841000,-5192.73,0.00013698,2]
[422671001,1779229841000,-5192.73,0.00013698,2]
[422670998,1779229841000,-5192.73,0.00013698,2]
[422670996,1779229841000,-5192.73,0.00013698,2]
[422671002,1779229841000,-349.78123329,0.00013698,2]
[422671000,1779229841000,-5192.73,0.00013698,2]
[422670995,1779229841000,-5192.73,0.00013698,2]
[422671003,1779229841000,-500.0,0.00013698,2]
[422671037,1779229841000,-500.0,0.00013698,2]
[422671091,1779229841000,-150.0,0.00013857,2]
[422671031,1779229841000,-500.0,0.00013698,2]
[422671069,1779229841000,-200.0,0.00013699,2]
[422671068,1779229841000,-2500.0,0.00013699,2]
[422671072,1779229841000,-163.26,0.000137,2]
[422671070,1779229841000,-166.66,0.00013699,2]
[422671073,1779229841000,-150.0,0.00013718,2]
[422671071,1779229841000,-719.98,0.00013699,2]
[422671075,1779229841000,-150.0,0.00013741,2]
[422671074,1779229841000,-150.0,0.00013718,2]
[422671076,1779229841000,-2000.0,0.00013743,2]
[422671077,1779229841000,-150.0,0.0001376,2]
[422671087,1779229841000,-156.75,0.0001383,2]
[422671088,1779229841000,-150.0,0.00013834,2]
[422671078,1779229841000,-150.0,0.00013764,2]
[422671079,1779229841000,-150.0,0.00013769,2]
[422671080,1779229841000,-150.0,0.00013776,2]
[422671086,1779229841000,-150.0,0.0001381,2]
[422671084,1779229841000,-5192.73,0.000138,2]
[422671083,1779229841000,-502.56,0.000138,2]
[422671081,1779229841000,-150.0,0.00013787,2]
[422671085,1779229841000,-1786.35,0.000138,2]
[422671082,1779229841000,-150.0,0.00013787,2]
[422671094,1779229841000,-150.0,0.00013862,2]
[422671095,1779229841000,-150.0,0.00013862,2]
[422671089,1779229841000,-150.0,0.00013834,2]
[422671092,1779229841000,-150.0,0.00013862,2]
[422671093,1779229841000,-150.0,0.00013862,2]
[422671090,1779229841000,-166.66,0.00013836,2]
[422671067,1779229841000,-372.71342826,0.00013698,2]
[422671066,1779229841000,-500.0,0.00013698,2]
[422671030,1779229841000,-500.0,0.00013698,2]
[422671064,1779229841000,-500.0,0.00013698,2]
[422671065,1779229841000,-500.0,0.00013698,2]
[422671034,1779229841000,-500.0,0.00013698,2]
[422671038,1779229841000,-500.0,0.00013698,2]
[422671036,1779229841000,-492.66,0.00013698,2]
[422671040,1779229841000,-500.0,0.00013698,2]
[422671044,1779229841000,-500.0,0.00013698,2]
[422671045,1779229841000,-500.0,0.00013698,2]
[422671041,1779229841000,-500.0,0.00013698,2]
[422671046,1779229841000,-500.0,0.00013698,2]
[422671049,1779229841000,-500.0,0.00013698,2]
[422671043,1779229841000,-500.0,0.00013698,2]
[422671047,1779229841000,-500.0,0.00013698,2]
[422671050,1779229841000,-500.0,0.00013698,2]
[422671042,1779229841000,-500.0,0.00013698,2]
[422671063,1779229841000,-500.0,0.00013698,2]
[422671048,1779229841000,-500.0,0.00013698,2]
[422671056,1779229841000,-500.0,0.00013698,2]
[422671059,1779229841000,-500.0,0.00013698,2]
[422671058,1779229841000,-500.0,0.00013698,2]
[422671061,1779229841000,-500.0,0.00013698,2]
[422671057,1779229841000,-500.0,0.00013698,2]
[422671055,1779229841000,-500.0,0.00013698,2]
[422671060,1779229841000,-500.0,0.00013698,2]
[422671054,1779229841000,-500.0,0.00013698,2]
[422671051,1779229841000,-500.0,0.00013698,2]
[422671062,1779229841000,-500.0,0.00013698,2]
[422671052,1779229841000,-500.0,0.00013698,2]
[422671053,1779229841000,-500.0,0.00013698,2]
[422671137,1779229842000,-150.0,0.00014179,2]
[422671130,1779229842000,-500.0,0.00014145,2]
[422671127,1779229842000,-150.0,0.00014122,2]
[422671131,1779229842000,-823.0,0.00014154,2]
[422671128,1779229842000,-150.0,0.00014133,2]
[422671132,1779229842000,-150.0,0.00014156,2]
[422671136,1779229842000,-150.0,0.00014179,2]
[422671139,1779229842000,-150.0,0.00014202,2]
[422671133,1779229842000,-150.0,0.00014169,2]
[422671129,1779229842000,-150.0,0.00014143,2]
[422671138,1779229842000,-3292.0,0.00014182,2]
[422671135,1779229842000,-4408.0,0.00014172,5]
[422671134,1779229842000,-4555.0,0.00014172,5]
[422671155,1779229842000,-150.0,0.00014341,2]
[422671140,1779229842000,-150.0,0.00014225,2]
[422671143,1779229842000,-150.0,0.00014237,2]
[422671147,1779229842000,-150.0,0.00014249,2]
[422671145,1779229842000,-150.0,0.00014237,2]
[422671146,1779229842000,-166.66,0.00014247,2]
[422671144,1779229842000,-150.0,0.00014237,2]
[422671142,1779229842000,-150.0,0.00014237,2]
[422671148,1779229842000,-909.7096108,0.00014267,2]
[422671150,1779229842000,-150.0,0.00014295,2]
[422671151,1779229842000,-150.0,0.00014295,2]
[422671153,1779229842000,-150.0,0.00014318,2]
[422671149,1779229842000,-150.0,0.00014272,2]
[422671122,1779229842000,-736.0,0.00014065,2]
[422671141,1779229842000,-150.0,0.00014237,2]
[422671121,1779229842000,-150.0,0.00014064,2]
[422671105,1779229842000,-150.0,0.00013949,2]
[422671117,1779229842000,-150.0,0.0001405,2]
[422671156,1779229842000,-525.7,0.00014343,2]
[422671096,1779229842000,-500.0,0.00013871,2]
[422671100,1779229842000,-150.0,0.00013896,2]
[422671098,1779229842000,-150.0,0.0001388,2]
[422671099,1779229842000,-150.0,0.00013891,2]
[422671097,1779229842000,-636.21,0.00013871,2]
[422671101,1779229842000,-150.0,0.00013903,2]
[422671112,1779229842000,-250.0,0.00014,2]
[422671103,1779229842000,-42199.72058963,0.00013938,2]
[422671102,1779229842000,-150.0,0.00013926,2]
[422671113,1779229842000,-150.0,0.00014006,2]
[422671114,1779229842000,-150.0,0.00014018,2]
[422671104,1779229842000,-150.0,0.00013949,2]
[422671106,1779229842000,-150.0,0.00013956,2]
[422671107,1779229842000,-150.0,0.00013972,2]
[422671110,1779229842000,-150.0,0.00013995,2]
[422671108,1779229842000,-166.66,0.00013973,2]
[422671109,1779229842000,-37093.93474373,0.0001399,2]
[422671111,1779229842000,-309.31,0.00014,2]
[422671115,1779229842000,-150.0,0.00014033,2]
[422671123,1779229842000,-150.0,0.00014087,2]
[422671116,1779229842000,-150.0,0.00014041,2]
[422671125,1779229842000,-166.66,0.0001411,2]
[422671124,1779229842000,-150.0,0.00014087,2]
[422671126,1779229842000,-150.0,0.0001411,2]
[422671118,1779229842000,-150.0,0.0001405,2]
[422671120,1779229842000,-150.0,0.00014064,2]
[422671119,1779229842000,-150.0,0.0001405,2]
[422671152,1779229842000,-150.0,0.00014305,2]
[422671159,1779229842000,-42199.72058963,0.00014344,2]
[422671160,1779229842000,-150.0,0.00014352,2]
[422671189,1779229842000,-150.0,0.00014433,2]
[422671190,1779229842000,-150.0,0.00014441,2]
[422671187,1779229842000,-150.0,0.00014424,2]
[422671198,1779229842000,-2650.54,0.00014497,2]
[422671195,1779229842000,-150.0,0.00014479,2]
[422671194,1779229842000,-5192.73,0.00014475,2]
[422671196,1779229842000,-700.0,0.00014484,2]
[422671199,1779229842000,-353.24,0.00014497,2]
[422671201,1779229842000,-82510.41,0.00014497,2]
[422671214,1779229842000,-525.7,0.00014575,2]
[422671211,1779229842000,-525.7,0.00014575,2]
[422671212,1779229842000,-525.7,0.00014575,2]
[422671200,1779229842000,-1848.03,0.00014497,2]
[422671192,1779229842000,-150.0,0.00014468,2]
[422671203,1779229842000,-150.0,0.00014518,2]
[422671206,1779229842000,-150.0,0.00014525,2]
[422671205,1779229842000,-150.0,0.00014525,2]
[422671207,1779229842000,-150.0,0.00014548,2]
[422671208,1779229842000,-150.0,0.00014571,2]
[422671209,1779229842000,-525.7,0.00014575,2]
[422671210,1779229842000,-525.7,0.00014575,2]
[422671216,1779229842000,-525.7,0.00014575,2]
[422671217,1779229842000,-525.7,0.00014575,2]
[422671215,1779229842000,-525.7,0.00014575,2]
[422671218,1779229842000,-525.7,0.00014575,2]
[422671219,1779229842000,-525.74572099,0.00014575,2]
[422671154,1779229842000,-150.0,0.00014331,2]
[422671220,1779229842000,-500.0,0.00014575,2]
[422671202,1779229842000,-150.0,0.00014502,2]
[422671191,1779229842000,-150.0,0.00014456,2]
[422671213,1779229842000,-525.7,0.00014575,2]
[422671193,1779229842000,-502.56,0.00014475,2]
[422671188,1779229842000,-150.0,0.00014424,2]
[422671157,1779229842000,-500.0,0.00014343,2]
[422671161,1779229842000,-500.0,0.00014355,2]
[422671165,1779229842000,-500.0,0.00014355,2]
[422671164,1779229842000,-500.0,0.00014355,2]
[422671162,1779229842000,-500.0,0.00014355,2]
[422671163,1779229842000,-500.0,0.00014355,2]
[422671166,1779229842000,-500.0,0.00014355,2]
[422671168,1779229842000,-500.0,0.00014355,2]
[422671167,1779229842000,-500.0,0.00014355,2]
[422671171,1779229842000,-500.0,0.00014355,2]
[422671173,1779229842000,-500.0,0.00014355,2]
[422671172,1779229842000,-500.0,0.00014355,2]
[422671170,1779229842000,-500.0,0.00014355,2]
[422671158,1779229842000,-500.0,0.00014343,2]
[422671181,1779229842000,-150.0,0.00014387,2]
[422671174,1779229842000,-500.0,0.00014355,2]
[422671179,1779229842000,-150.0,0.00014364,2]
[422671185,1779229842000,-500.0,0.00014419,2]
[422671186,1779229842000,-150.0,0.00014424,2]
[422671180,1779229842000,-166.66,0.00014384,2]
[422671184,1779229842000,-150.0,0.0001441,2]
[422671177,1779229842000,-500.0,0.00014355,2]
[422671182,1779229842000,-150.0,0.00014387,2]
[422671176,1779229842000,-500.0,0.00014355,2]
[422671175,1779229842000,-500.0,0.00014355,2]
[422671183,1779229842000,-150.0,0.0001441,2]
[422671178,1779229842000,-414.8124978,0.00014355,2]
[422671267,1779229843000,-42199.72058963,0.0001475,2]
[422671260,1779229843000,-500.0,0.00014693,2]
[422671261,1779229843000,-156.75,0.00014694,2]
[422671259,1779229843000,-150.0,0.00014687,2]
[422671266,1779229843000,-150.0,0.00014733,2]
[422671249,1779229843000,-150.0,0.00014612,2]
[422671257,1779229843000,-150.0,0.00014664,2]
[422671264,1779229843000,-150.0,0.0001471,2]
[422671255,1779229843000,-150.0,0.0001464,2]
[422671256,1779229843000,-150.0,0.0001464,2]
[422671258,1779229843000,-150.0,0.00014687,2]
[422671250,1779229843000,-150.0,0.00014612,2]
[422671265,1779229843000,-150.0,0.00014714,2]
[422671263,1779229843000,-150.0,0.00014705,2]
[422671274,1779229843000,-150.0,0.00014799,2]
[422671268,1779229843000,-150.0,0.00014756,2]
[422671272,1779229843000,-150.0,0.00014799,2]
[422671280,1779229843000,-51055.36084201,0.0001485,2]
[422671276,1779229843000,-1537.16,0.00014809,2]
[422671277,1779229843000,-150.0,0.00014813,2]
[422671275,1779229843000,-150.0,0.00014802,2]
[422671290,1779229843000,-909.7096108,0.000149,2]
[422671271,1779229843000,-150.0,0.00014779,2]
[422671273,1779229843000,-150.0,0.00014799,2]
[422671269,1779229843000,-150.0,0.00014756,2]
[422671279,1779229843000,-150.0,0.00014848,2]
[422671278,1779229843000,-150.0,0.00014825,2]
[422671282,1779229843000,-234.28657,0.0001485,2]
[422671262,1779229843000,-150.0,0.00014698,2]
[422671251,1779229843000,-150.0,0.00014612,2]
[422671227,1779229843000,-502.56,0.00014575,2]
[422671244,1779229843000,-5192.7546713,0.00014575,2]
[422671281,1779229843000,-234.28657,0.0001485,2]
[422671226,1779229843000,-502.56,0.00014575,2]
[422671228,1779229843000,-502.56,0.00014575,2]
[422671224,1779229843000,-588.50661964,0.00014575,2]
[422671223,1779229843000,-500.0,0.00014575,2]
[422671222,1779229843000,-182.00213245,0.00014575,2]
[422671225,1779229843000,-502.56,0.00014575,2]
[422671221,1779229843000,-500.0,0.00014575,2]
[422671233,1779229843000,-502.56,0.00014575,2]
[422671230,1779229843000,-502.56,0.00014575,2]
[422671238,1779229843000,-5192.73,0.00014575,2]
[422671229,1779229843000,-502.56,0.00014575,2]
[422671235,1779229843000,-5192.73,0.00014575,2]
[422671232,1779229843000,-502.56,0.00014575,2]
[422671234,1779229843000,-502.63,0.00014575,2]
[422671237,1779229843000,-5192.73,0.00014575,2]
[422671231,1779229843000,-502.56,0.00014575,2]
[422671236,1779229843000,-5192.73,0.00014575,2]
[422671239,1779229843000,-5192.73,0.00014575,2]
[422671240,1779229843000,-5192.73,0.00014575,2]
[422671241,1779229843000,-5192.73,0.00014575,2]
[422671242,1779229843000,-5192.73,0.00014575,2]
[422671245,1779229843000,-150.0,0.00014578,2]
[422671243,1779229843000,-5192.73,0.00014575,2]
[422671253,1779229843000,-5979.233,0.00014638,2]
[422671246,1779229843000,-150.0,0.00014583,2]
[422671247,1779229843000,-150.0,0.00014594,2]
[422671254,1779229843000,-424.985,0.00014638,2]
[422671252,1779229843000,-150.0,0.00014617,2]
[422671248,1779229843000,-150.0,0.00014612,2]
[422671291,1779229843000,-192.02289105,0.000149,2]
[422671270,1779229843000,-200.0,0.00014758,2]
[422671287,1779229843000,-200.0,0.00014879,2]
[422671321,1779229843000,-1812.0147624,0.0001494,2]
[422671322,1779229843000,-151.0,0.0001494,2]
[422671330,1779229843000,-151.0,0.0001494,2]
[422671323,1779229843000,-151.0,0.0001494,2]
[422671320,1779229843000,-375.304829,0.0001494,2]
[422671326,1779229843000,-566.539487,0.0001494,2]
[422671329,1779229843000,-566.539487,0.0001494,2]
[422671325,1779229843000,-151.0,0.0001494,2]
[422671327,1779229843000,-566.539487,0.0001494,2]